{"text_format":"3","workbook":"xlsx","n_sheets":1,"sheets":["Vannasistabas remonta izmaksas"],"not_rendered":{"defined_names":3},"read":"whole","date_system":"1900"}

{"sheet":"Vannasistabas remonta izmaksas","index":0,"n_rows":23,"n_cols":10,"rows_kept":23,"merged":[[1,1,2,3],[2,4,2,6],[2,7,2,9],[21,1,21,3],[21,4,21,6],[21,7,21,9],[22,1,22,3],[22,4,22,6],[22,7,22,9]]}
[null,"Vannasistabas remonta izmaksu darblapa"]
[null,"PIEZĪME. Tabulas kolonnās Starpība tiks uzrādīta vērtība, ja faktiskie izdevumi pārsniegs plānotos. Sarkani skaitļi parāda pārsniegumu (negatīvu vērtību), un melni skaitļi parāda ietaupījumu (pozitīvu vērtību). "]
[{"$nulls":4},"Detalizētas izmaksas (EUR)",null,null,"Kopējās izmaksas (EUR)"]
[null,"Zona","Preces","Daudzums","Plānotās izmaksas","Faktiskās izmaksas","Starpība","Plānotās izmaksas ","Faktiskās izmaksas ","Starpība "]
[null,"Vanna/duša","Vanna, dzelzs, 1,50 m, standarta",1,{"v":250,"d":"250.00 EUR"},{"$f":"RANDBETWEEN(E5+2,E5+20)","v":{"v":253,"d":"253.00 EUR"}},{"$f":"IFERROR(Izmaksas[[#This Row],[Plānotās izmaksas]]-Izmaksas[[#This Row],[Faktiskās izmaksas]], \"\")","v":{"v":-3,"d":"-3.00 EUR"}},{"$f":"IFERROR(Izmaksas[[#This Row],[Daudzums]]*Izmaksas[[#This Row],[Plānotās izmaksas]], \"\")","v":{"v":250,"d":"250.00 EUR"}},{"$f":"IFERROR(Izmaksas[[#This Row],[Daudzums]]*Izmaksas[[#This Row],[Faktiskās izmaksas]], \"\")","v":{"v":253,"d":"253.00 EUR"}},{"$f":"IFERROR(Izmaksas[[#This Row],[Plānotās izmaksas ]]-Izmaksas[[#This Row],[Faktiskās izmaksas ]], \"\")","v":{"v":-3,"d":"-3.00 EUR"}}]
[null,"Vanna/duša","Dušas durtiņas, ar eņģēm, standarta",1,{"v":200,"d":"200.00 EUR"},{"v":208,"d":"208.00 EUR"},{"$f":"IFERROR(Izmaksas[[#This Row],[Plānotās izmaksas]]-Izmaksas[[#This Row],[Faktiskās izmaksas]], \"\")","v":{"v":-8,"d":"-8.00 EUR"}},{"$f":"IFERROR(Izmaksas[[#This Row],[Daudzums]]*Izmaksas[[#This Row],[Plānotās izmaksas]], \"\")","v":{"v":200,"d":"200.00 EUR"}},{"$f":"IFERROR(Izmaksas[[#This Row],[Daudzums]]*Izmaksas[[#This Row],[Faktiskās izmaksas]], \"\")","v":{"v":208,"d":"208.00 EUR"}},{"$f":"IFERROR(Izmaksas[[#This Row],[Plānotās izmaksas ]]-Izmaksas[[#This Row],[Faktiskās izmaksas ]], \"\")","v":{"v":-8,"d":"-8.00 EUR"}}]
[null,"Vanna/duša","Dušas klausule, standarta",1,{"v":50,"d":"50.00 EUR"},{"v":70,"d":"70.00 EUR"},{"$f":"IFERROR(Izmaksas[[#This Row],[Plānotās izmaksas]]-Izmaksas[[#This Row],[Faktiskās izmaksas]], \"\")","v":{"v":-20,"d":"-20.00 EUR"}},{"$f":"IFERROR(Izmaksas[[#This Row],[Daudzums]]*Izmaksas[[#This Row],[Plānotās izmaksas]], \"\")","v":{"v":50,"d":"50.00 EUR"}},{"$f":"IFERROR(Izmaksas[[#This Row],[Daudzums]]*Izmaksas[[#This Row],[Faktiskās izmaksas]], \"\")","v":{"v":70,"d":"70.00 EUR"}},{"$f":"IFERROR(Izmaksas[[#This Row],[Plānotās izmaksas ]]-Izmaksas[[#This Row],[Faktiskās izmaksas ]], \"\")","v":{"v":-20,"d":"-20.00 EUR"}}]
[null,"Vanna/duša","Vannas apkārtējā siena, standarta",1,{"v":200,"d":"200.00 EUR"},{"v":217,"d":"217.00 EUR"},{"$f":"IFERROR(Izmaksas[[#This Row],[Plānotās izmaksas]]-Izmaksas[[#This Row],[Faktiskās izmaksas]], \"\")","v":{"v":-17,"d":"-17.00 EUR"}},{"$f":"IFERROR(Izmaksas[[#This Row],[Daudzums]]*Izmaksas[[#This Row],[Plānotās izmaksas]], \"\")","v":{"v":200,"d":"200.00 EUR"}},{"$f":"IFERROR(Izmaksas[[#This Row],[Daudzums]]*Izmaksas[[#This Row],[Faktiskās izmaksas]], \"\")","v":{"v":217,"d":"217.00 EUR"}},{"$f":"IFERROR(Izmaksas[[#This Row],[Plānotās izmaksas ]]-Izmaksas[[#This Row],[Faktiskās izmaksas ]], \"\")","v":{"v":-17,"d":"-17.00 EUR"}}]
[null,"Skapīši","Tualetes skapītis, 60 cm, deluxe",1,{"v":200,"d":"200.00 EUR"},{"v":219,"d":"219.00 EUR"},{"$f":"IFERROR(Izmaksas[[#This Row],[Plānotās izmaksas]]-Izmaksas[[#This Row],[Faktiskās izmaksas]], \"\")","v":{"v":-19,"d":"-19.00 EUR"}},{"$f":"IFERROR(Izmaksas[[#This Row],[Daudzums]]*Izmaksas[[#This Row],[Plānotās izmaksas]], \"\")","v":{"v":200,"d":"200.00 EUR"}},{"$f":"IFERROR(Izmaksas[[#This Row],[Daudzums]]*Izmaksas[[#This Row],[Faktiskās izmaksas]], \"\")","v":{"v":219,"d":"219.00 EUR"}},{"$f":"IFERROR(Izmaksas[[#This Row],[Plānotās izmaksas ]]-Izmaksas[[#This Row],[Faktiskās izmaksas ]], \"\")","v":{"v":-19,"d":"-19.00 EUR"}}]
[null,"Skapīši","Moduļu skapīši, 75 cm, standarta",2,{"v":100,"d":"100.00 EUR"},{"v":111,"d":"111.00 EUR"},{"$f":"IFERROR(Izmaksas[[#This Row],[Plānotās izmaksas]]-Izmaksas[[#This Row],[Faktiskās izmaksas]], \"\")","v":{"v":-11,"d":"-11.00 EUR"}},{"$f":"IFERROR(Izmaksas[[#This Row],[Daudzums]]*Izmaksas[[#This Row],[Plānotās izmaksas]], \"\")","v":{"v":200,"d":"200.00 EUR"}},{"$f":"IFERROR(Izmaksas[[#This Row],[Daudzums]]*Izmaksas[[#This Row],[Faktiskās izmaksas]], \"\")","v":{"v":222,"d":"222.00 EUR"}},{"$f":"IFERROR(Izmaksas[[#This Row],[Plānotās izmaksas ]]-Izmaksas[[#This Row],[Faktiskās izmaksas ]], \"\")","v":{"v":-22,"d":"-22.00 EUR"}}]
[null,"Letes","Keramikas flīzes, deluxe (skaits uz metru)",5,{"v":22.5,"d":"22.50 EUR"},{"v":27,"d":"27.00 EUR"},{"$f":"IFERROR(Izmaksas[[#This Row],[Plānotās izmaksas]]-Izmaksas[[#This Row],[Faktiskās izmaksas]], \"\")","v":{"v":-4.5,"d":"-4.50 EUR"}},{"$f":"IFERROR(Izmaksas[[#This Row],[Daudzums]]*Izmaksas[[#This Row],[Plānotās izmaksas]], \"\")","v":{"v":112.5,"d":"112.50 EUR"}},{"$f":"IFERROR(Izmaksas[[#This Row],[Daudzums]]*Izmaksas[[#This Row],[Faktiskās izmaksas]], \"\")","v":{"v":135,"d":"135.00 EUR"}},{"$f":"IFERROR(Izmaksas[[#This Row],[Plānotās izmaksas ]]-Izmaksas[[#This Row],[Faktiskās izmaksas ]], \"\")","v":{"v":-22.5,"d":"-22.50 EUR"}}]
[null,"Jaucējkrāni","Jaucējkrāns, vanna, standarta",1,{"v":90,"d":"90.00 EUR"},{"v":99,"d":"99.00 EUR"},{"$f":"IFERROR(Izmaksas[[#This Row],[Plānotās izmaksas]]-Izmaksas[[#This Row],[Faktiskās izmaksas]], \"\")","v":{"v":-9,"d":"-9.00 EUR"}},{"$f":"IFERROR(Izmaksas[[#This Row],[Daudzums]]*Izmaksas[[#This Row],[Plānotās izmaksas]], \"\")","v":{"v":90,"d":"90.00 EUR"}},{"$f":"IFERROR(Izmaksas[[#This Row],[Daudzums]]*Izmaksas[[#This Row],[Faktiskās izmaksas]], \"\")","v":{"v":99,"d":"99.00 EUR"}},{"$f":"IFERROR(Izmaksas[[#This Row],[Plānotās izmaksas ]]-Izmaksas[[#This Row],[Faktiskās izmaksas ]], \"\")","v":{"v":-9,"d":"-9.00 EUR"}}]
[null,"Jaucējkrāni","Dušas jaucējkrāns, viens rokturis, standarta",1,{"v":115,"d":"115.00 EUR"},{"v":127,"d":"127.00 EUR"},{"$f":"IFERROR(Izmaksas[[#This Row],[Plānotās izmaksas]]-Izmaksas[[#This Row],[Faktiskās izmaksas]], \"\")","v":{"v":-12,"d":"-12.00 EUR"}},{"$f":"IFERROR(Izmaksas[[#This Row],[Daudzums]]*Izmaksas[[#This Row],[Plānotās izmaksas]], \"\")","v":{"v":115,"d":"115.00 EUR"}},{"$f":"IFERROR(Izmaksas[[#This Row],[Daudzums]]*Izmaksas[[#This Row],[Faktiskās izmaksas]], \"\")","v":{"v":127,"d":"127.00 EUR"}},{"$f":"IFERROR(Izmaksas[[#This Row],[Plānotās izmaksas ]]-Izmaksas[[#This Row],[Faktiskās izmaksas ]], \"\")","v":{"v":-12,"d":"-12.00 EUR"}}]
[null,"Jaucējkrāni","Izlietnes jaucējkrāns, standarta",1,{"v":95,"d":"95.00 EUR"},{"v":97,"d":"97.00 EUR"},{"$f":"IFERROR(Izmaksas[[#This Row],[Plānotās izmaksas]]-Izmaksas[[#This Row],[Faktiskās izmaksas]], \"\")","v":{"v":-2,"d":"-2.00 EUR"}},{"$f":"IFERROR(Izmaksas[[#This Row],[Daudzums]]*Izmaksas[[#This Row],[Plānotās izmaksas]], \"\")","v":{"v":95,"d":"95.00 EUR"}},{"$f":"IFERROR(Izmaksas[[#This Row],[Daudzums]]*Izmaksas[[#This Row],[Faktiskās izmaksas]], \"\")","v":{"v":97,"d":"97.00 EUR"}},{"$f":"IFERROR(Izmaksas[[#This Row],[Plānotās izmaksas ]]-Izmaksas[[#This Row],[Faktiskās izmaksas ]], \"\")","v":{"v":-2,"d":"-2.00 EUR"}}]
[null,"Grīda","Keramikas flīzes, standarta (skaits uz kv. m)",35,{"v":12,"d":"12.00 EUR"},{"v":14,"d":"14.00 EUR"},{"$f":"IFERROR(Izmaksas[[#This Row],[Plānotās izmaksas]]-Izmaksas[[#This Row],[Faktiskās izmaksas]], \"\")","v":{"v":-2,"d":"-2.00 EUR"}},{"$f":"IFERROR(Izmaksas[[#This Row],[Daudzums]]*Izmaksas[[#This Row],[Plānotās izmaksas]], \"\")","v":{"v":420,"d":"420.00 EUR"}},{"$f":"IFERROR(Izmaksas[[#This Row],[Daudzums]]*Izmaksas[[#This Row],[Faktiskās izmaksas]], \"\")","v":{"v":490,"d":"490.00 EUR"}},{"$f":"IFERROR(Izmaksas[[#This Row],[Plānotās izmaksas ]]-Izmaksas[[#This Row],[Faktiskās izmaksas ]], \"\")","v":{"v":-70,"d":"-70.00 EUR"}}]
[null,"Piederumi","Dvieļu turētājs, standarta",2,{"v":15,"d":"15.00 EUR"},{"v":26,"d":"26.00 EUR"},{"$f":"IFERROR(Izmaksas[[#This Row],[Plānotās izmaksas]]-Izmaksas[[#This Row],[Faktiskās izmaksas]], \"\")","v":{"v":-11,"d":"-11.00 EUR"}},{"$f":"IFERROR(Izmaksas[[#This Row],[Daudzums]]*Izmaksas[[#This Row],[Plānotās izmaksas]], \"\")","v":{"v":30,"d":"30.00 EUR"}},{"$f":"IFERROR(Izmaksas[[#This Row],[Daudzums]]*Izmaksas[[#This Row],[Faktiskās izmaksas]], \"\")","v":{"v":52,"d":"52.00 EUR"}},{"$f":"IFERROR(Izmaksas[[#This Row],[Plānotās izmaksas ]]-Izmaksas[[#This Row],[Faktiskās izmaksas ]], \"\")","v":{"v":-22,"d":"-22.00 EUR"}}]
[null,"Piederumi","Tualetes papīra turētājs",1,{"v":10,"d":"10.00 EUR"},{"v":27,"d":"27.00 EUR"},{"$f":"IFERROR(Izmaksas[[#This Row],[Plānotās izmaksas]]-Izmaksas[[#This Row],[Faktiskās izmaksas]], \"\")","v":{"v":-17,"d":"-17.00 EUR"}},{"$f":"IFERROR(Izmaksas[[#This Row],[Daudzums]]*Izmaksas[[#This Row],[Plānotās izmaksas]], \"\")","v":{"v":10,"d":"10.00 EUR"}},{"$f":"IFERROR(Izmaksas[[#This Row],[Daudzums]]*Izmaksas[[#This Row],[Faktiskās izmaksas]], \"\")","v":{"v":27,"d":"27.00 EUR"}},{"$f":"IFERROR(Izmaksas[[#This Row],[Plānotās izmaksas ]]-Izmaksas[[#This Row],[Faktiskās izmaksas ]], \"\")","v":{"v":-17,"d":"-17.00 EUR"}}]
[null,"Apgaismojums","Iebūvēts apgaismojums, standarta",4,{"v":25,"d":"25.00 EUR"},{"v":28,"d":"28.00 EUR"},{"$f":"IFERROR(Izmaksas[[#This Row],[Plānotās izmaksas]]-Izmaksas[[#This Row],[Faktiskās izmaksas]], \"\")","v":{"v":-3,"d":"-3.00 EUR"}},{"$f":"IFERROR(Izmaksas[[#This Row],[Daudzums]]*Izmaksas[[#This Row],[Plānotās izmaksas]], \"\")","v":{"v":100,"d":"100.00 EUR"}},{"$f":"IFERROR(Izmaksas[[#This Row],[Daudzums]]*Izmaksas[[#This Row],[Faktiskās izmaksas]], \"\")","v":{"v":112,"d":"112.00 EUR"}},{"$f":"IFERROR(Izmaksas[[#This Row],[Plānotās izmaksas ]]-Izmaksas[[#This Row],[Faktiskās izmaksas ]], \"\")","v":{"v":-12,"d":"-12.00 EUR"}}]
[null,"Izlietnes","Klozetpods, standarta",2,{"v":60,"d":"60.00 EUR"},{"v":75,"d":"75.00 EUR"},{"$f":"IFERROR(Izmaksas[[#This Row],[Plānotās izmaksas]]-Izmaksas[[#This Row],[Faktiskās izmaksas]], \"\")","v":{"v":-15,"d":"-15.00 EUR"}},{"$f":"IFERROR(Izmaksas[[#This Row],[Daudzums]]*Izmaksas[[#This Row],[Plānotās izmaksas]], \"\")","v":{"v":120,"d":"120.00 EUR"}},{"$f":"IFERROR(Izmaksas[[#This Row],[Daudzums]]*Izmaksas[[#This Row],[Faktiskās izmaksas]], \"\")","v":{"v":150,"d":"150.00 EUR"}},{"$f":"IFERROR(Izmaksas[[#This Row],[Plānotās izmaksas ]]-Izmaksas[[#This Row],[Faktiskās izmaksas ]], \"\")","v":{"v":-30,"d":"-30.00 EUR"}}]
[null,"Citi",null,1,{"v":20,"d":"20.00 EUR"},{"v":38,"d":"38.00 EUR"},{"$f":"IFERROR(Izmaksas[[#This Row],[Plānotās izmaksas]]-Izmaksas[[#This Row],[Faktiskās izmaksas]], \"\")","v":{"v":-18,"d":"-18.00 EUR"}},{"$f":"IFERROR(Izmaksas[[#This Row],[Daudzums]]*Izmaksas[[#This Row],[Plānotās izmaksas]], \"\")","v":{"v":20,"d":"20.00 EUR"}},{"$f":"IFERROR(Izmaksas[[#This Row],[Daudzums]]*Izmaksas[[#This Row],[Faktiskās izmaksas]], \"\")","v":{"v":38,"d":"38.00 EUR"}},{"$f":"IFERROR(Izmaksas[[#This Row],[Plānotās izmaksas ]]-Izmaksas[[#This Row],[Faktiskās izmaksas ]], \"\")","v":{"v":-18,"d":"-18.00 EUR"}}]
[null,"Starpsumma",null,null,{"$f":"SUBTOTAL(109,Izmaksas[Plānotās izmaksas])","v":{"v":1464.5,"d":"1,464.50 EUR"}},{"$f":"SUBTOTAL(109,Izmaksas[Faktiskās izmaksas])","v":{"v":1636,"d":"1,636.00 EUR"}},{"$f":"SUBTOTAL(109,Izmaksas[Starpība])","v":{"v":-171.5,"d":"-171.50 EUR"}},{"$f":"SUBTOTAL(109,Izmaksas[[Plānotās izmaksas ]])","v":{"v":2212.5,"d":"2,212.50 EUR"}},{"$f":"SUBTOTAL(109,Izmaksas[[Faktiskās izmaksas ]])","v":{"v":2516,"d":"2,516.00 EUR"}},{"$f":"SUBTOTAL(109,Izmaksas[[Starpība ]])","v":{"v":-303.5,"d":"-303.50 EUR"}}]
[null,"Neparedzētas izmaksas (pievienojiet aptuveni 30%)",null,null,{"$f":"IFERROR(Izmaksas[[#Totals],[Plānotās izmaksas]]*0.3, \"\")","v":{"v":439.34999999999997,"d":"439.35 EUR"}},null,null,{"$f":"IFERROR(Izmaksas[[#Totals],[Plānotās izmaksas ]]*0.3, \"\")","v":{"v":663.75,"d":"663.75 EUR"}}]
[null,"Kopējās izmaksas",null,null,{"$f":"IFERROR(SUM(E21:E21), \"\")","v":{"v":1464.5,"d":"1,464.50 EUR"}},null,null,{"$f":"IFERROR(SUM(Izmaksas[[#Totals],[Plānotās izmaksas ]],Pārsniegums), \"\")","v":{"v":2876.25,"d":"2,876.25 EUR"}}]